bitfinex/quotes_BTCUSD_20241022
["timestamp","ask_amount","ask_price","bid_price","bid_amount"]
[1729606923224,0.01473051,67353.0,67352.0,0.31743215]
[1729606923677,0.01473051,67353.0,67352.0,0.31943215]
[1729606923901,0.000828,67353.0,67352.0,0.41943215]
[1729606924162,0.000828,67353.0,67352.0,0.6662913]
[1729606924379,0.000828,67353.0,67352.0,0.6702913]
[1729606924830,0.000828,67353.0,67352.0,0.6682913]
[1729606925083,0.000828,67353.0,67352.0,0.6702913]
[1729606925301,0.000828,67353.0,67352.0,0.41843215]
[1729606925560,0.000828,67353.0,67352.0,0.170473]
[1729606925786,0.000828,67353.0,67352.0,0.17344183]
[1729606926019,0.000828,67353.0,67352.0,0.1774418]
[1729606926240,0.000828,67353.0,67352.0,0.4548956]
[1729606926473,0.000828,67353.0,67352.0,0.172473]
[1729606926703,0.000828,67353.0,67352.0,0.1734418]
[1729606926937,0.000828,67353.0,67352.0,0.32240095]
[1729606927180,0.000828,67353.0,67352.0,0.31743215]
[1729606927703,0.000828,67353.0,67352.0,0.31943215]
[1729606927921,0.000828,67353.0,67352.0,0.48932583]
[1729606928150,0.000828,67353.0,67352.0,0.49132583]
[1729606928385,0.000828,67353.0,67352.0,0.34443215]
[1729606928598,0.000828,67353.0,67352.0,0.163473]
[1729606928814,0.000828,67353.0,67352.0,0.32143215]
[1729606929246,0.000828,67353.0,67352.0,0.31743215]
[1729606929468,0.000828,67353.0,67352.0,0.46992583]
[1729606929940,0.000828,67353.0,67352.0,0.58892583]
[1729606930159,0.000828,67353.0,67352.0,0.58692583]
[1729606930623,0.000828,67353.0,67352.0,0.58892583]
[1729606931104,0.000828,67353.0,67352.0,0.58692583]
[1729606931578,0.000828,67353.0,67352.0,0.59292583]
[1729606931789,0.000828,67353.0,67352.0,0.58892583]
[1729606932254,0.000828,67353.0,67352.0,0.59292583]
[1729606932987,0.000828,67353.0,67352.0,0.44643215]
[1729606933477,0.000828,67353.0,67352.0,0.44443215]
[1729606933722,0.000828,67353.0,67352.0,0.44643215]
[1729606934187,0.000828,67353.0,67352.0,0.44443215]
[1729606934655,0.000828,67353.0,67352.0,0.44643215]
[1729606934900,0.000828,67353.0,67352.0,0.5953913]
[1729606935675,0.000828,67353.0,67352.0,0.8473913]
[1729606935921,1e-06,67353.0,67352.0,1.15985174]
[1729606936180,1e-06,67353.0,67352.0,1.22564242]
[1729606936428,0.000827,67372.0,67371.0,0.54805267]
[1729606936681,0.000827,67372.0,67371.0,0.81119079]
[1729606938671,0.000827,67372.0,67371.0,0.81319079]
[1729606939383,0.000827,67372.0,67371.0,0.81619079]
[1729606939602,0.000827,67372.0,67371.0,0.81819079]
[1729606939838,0.000827,67372.0,67371.0,0.81619079]
[1729606940071,0.000827,67372.0,67371.0,0.81419079]
[1729606940367,1e-06,67372.0,67371.0,1.04045088]
[1729606940610,0.000827,67380.0,67371.0,1.04045088]
[1729606940611,0.000827,67380.0,67379.0,0.371714]
[1729606940851,0.001682,67393.0,67392.0,0.54800667]
[1729606941101,0.001682,67393.0,67392.0,0.69896582]
[1729606941355,0.001682,67393.0,67392.0,0.95558749]
[1729606941578,0.001682,67393.0,67392.0,1.32333199]
[1729606941825,0.001682,67393.0,67392.0,1.02686582]
[1729606942067,0.001682,67393.0,67392.0,0.92582497]
[1729606943054,0.001682,67393.0,67392.0,0.93082497]
[1729606943285,0.001682,67393.0,67392.0,0.92982497]
[1729606943750,0.001682,67393.0,67392.0,0.93082497]
[1729606943997,0.001682,67393.0,67392.0,1.18644664]
[1729606944241,0.001682,67393.0,67392.0,1.40870673]
[1729606944242,1e-06,67393.0,67392.0,1.40870673]
[1729606944476,0.000827,67406.0,67405.0,0.291356]
[1729606944708,0.000827,67406.0,67405.0,0.81528952]
[1729606944951,0.000827,67406.0,67405.0,0.81728952]
[1729606945191,0.000827,67406.0,67405.0,0.85388785]
[1729606945435,0.000827,67406.0,67405.0,0.85188785]
[1729606945675,0.000827,67406.0,67405.0,0.81528952]
[1729606945914,0.000827,67406.0,67405.0,0.55866785]
[1729606946151,0.000827,67406.0,67405.0,0.56166785]
[1729606946386,0.000827,67406.0,67405.0,0.73072828]
[1729606946621,0.000827,67406.0,67405.0,0.73272828]
[1729606947111,0.000827,67406.0,67405.0,0.72772828]
[1729606947349,0.000827,67406.0,67405.0,0.73272828]
[1729606947823,0.000827,67406.0,67405.0,0.73072828]
[1729606948549,0.000827,67406.0,67405.0,0.72772828]
[1729606948798,0.000827,67406.0,67405.0,0.72972828]
[1729606949036,0.000827,67406.0,67405.0,0.73272828]
[1729606949289,0.000827,67406.0,67405.0,0.73472828]
[1729606949521,0.000827,67406.0,67405.0,0.77022597]
[1729606949777,0.000827,67406.0,67405.0,0.56366785]
[1729606950258,0.000827,67406.0,67405.0,0.173356]
[1729606950762,0.000827,67406.0,67405.0,0.17632265]
[1729606950996,0.000827,67406.0,67405.0,0.17432265]
[1729606951457,0.000827,67406.0,67405.0,0.173356]
[1729606951686,0.000827,67406.0,67405.0,0.170356]
[1729606951920,0.000827,67406.0,67405.0,0.163356]
[1729606952150,0.000827,67406.0,67405.0,0.173356]
[1729606952384,0.000827,67406.0,67405.0,0.165356]
[1729606952626,0.000827,67406.0,67405.0,0.168356]
[1729606953090,0.000827,67406.0,67405.0,0.165356]
[1729606953355,0.000827,67406.0,67405.0,0.2717087]
[1729606953591,0.000827,67406.0,67405.0,0.2697087]
[1729606953824,0.000827,67406.0,67405.0,0.2747087]
[1729606955497,0.000827,67406.0,67405.0,0.01]
[1729606955737,0.000827,67406.0,67405.0,0.005]
[1729606955738,0.227781,67406.0,67405.0,0.005]
[1729606955993,0.148381,67394.0,67393.0,0.22226009]
[1729606956234,0.31744143,67394.0,67393.0,0.22226009]
[1729606956485,0.18283295,67394.0,67393.0,0.22226009]
[1729606956712,0.16906043,67394.0,67389.0,0.005]
[1729606956943,0.148387,67392.0,67389.0,0.005]
[1729606957189,0.148389,67390.0,67389.0,0.005]
[1729606957423,0.16906043,67390.0,67389.0,0.005]
[1729606957684,0.01377252,67391.0,67390.0,0.005]
[1729606957935,0.16906043,67392.0,67389.0,0.005]
[1729606958192,0.16906043,67390.0,67385.0,0.005]
[1729606958475,0.16906043,67390.0,67371.0,0.401859]
[1729606958476,0.25709758,67388.0,67366.0,0.296884]
[1729606958708,0.148403,67384.0,67383.0,0.22226009]
[1729606958947,0.148403,67384.0,67376.0,0.22226009]
[1729606958948,0.01378417,67384.0,67379.0,0.005]
[1729606959175,0.148408,67382.0,67379.0,0.005]
[1729606959410,0.01378417,67382.0,67379.0,0.005]
[1729606959664,0.25709758,67380.0,67379.0,0.005]
[1729606959917,0.148414,67379.0,67376.0,0.005]
[1729606960155,0.01378417,67379.0,67378.0,0.005]
[1729606960400,0.25709758,67380.0,67379.0,0.002]
[1729606960661,0.41929275,67380.0,67379.0,0.002]
[1729606960918,0.41929275,67380.0,67362.0,0.51916309]
[1729606960919,0.296842,67376.0,67364.0,0.005]
[1729606961160,0.296842,67376.0,67362.0,0.22226009]
[1729606961161,0.148449,67363.0,67362.0,0.22226009]
[1729606961411,0.225749,67363.0,67362.0,0.22226009]
[1729606961671,0.314529,67363.0,67362.0,0.22226009]
[1729606961915,0.314529,67363.0,67359.0,0.005]
[1729606961916,0.148456,67360.0,67359.0,0.005]
[1729606962175,0.148458,67359.0,67358.0,0.005]
[1729606962637,0.1622532,67359.0,67358.0,0.005]
[1729606962873,0.0137952,67359.0,67358.0,0.005]
[1729606963110,0.1622532,67359.0,67358.0,0.005]
[1729606963361,0.0137952,67359.0,67358.0,0.005]
[1729606964256,0.0137952,67359.0,67355.0,0.005]
[1729606964257,0.148464,67356.0,67355.0,0.005]
[1729606964495,0.41935678,67356.0,67355.0,0.005]
[1729606964954,0.27089278,67356.0,67355.0,0.005]
[1729606965172,0.41935678,67356.0,67355.0,0.005]
[1729606965411,0.27089278,67356.0,67355.0,0.005]
[1729606966221,0.296938,67354.0,67352.0,0.001652]
[1729606966448,0.29743015,67353.0,67352.0,0.001652]
[1729606966672,0.148471,67353.0,67352.0,0.001652]
[1729606967556,0.01375983,67354.0,67352.0,0.001652]
[1729606967811,0.005,67361.0,67352.0,0.001652]
[1729606967812,0.0773,67363.0,67358.0,0.0046063]
[1729606968037,0.09104955,67363.0,67359.0,0.0046063]
[1729606968263,0.23949955,67363.0,67359.0,0.0046063]
[1729606968520,0.25709758,67361.0,67359.0,0.0046063]
[1729606968760,0.16220555,67360.0,67359.0,0.0046063]
[1729606968975,0.2538,67380.0,67370.0,0.0046063]
[1729606969203,0.01374037,67379.0,67374.0,0.0046063]
[1729606969450,0.01374037,67379.0,67377.0,0.0046063]
[1729606969920,0.402213,67380.0,67377.0,0.0046063]
[1729606970149,0.402214,67380.0,67377.0,0.0046063]
[1729606970383,0.001,67379.0,67377.0,0.0046063]
[1729606970610,0.402213,67380.0,67377.0,0.0046063]
[1729606970831,0.148414,67379.0,67377.0,0.0046063]
[1729606971056,0.149414,67379.0,67377.0,0.0046063]
[1729606971271,0.2538,67380.0,67377.0,0.0046063]
[1729606971536,0.2538,67380.0,67371.0,0.296861]
[1729606971537,0.25709758,67386.0,67382.0,0.0046063]
[1729606971769,0.148405,67383.0,67382.0,0.0046063]
[1729606972233,0.55389858,67386.0,67382.0,0.0046063]
[1729606972234,0.148402,67385.0,67382.0,0.0046063]
[1729606972470,0.445201,67385.0,67382.0,0.0046063]
[1729606972712,0.148403,67384.0,67382.0,0.0046063]
[1729606973181,0.148403,67384.0,67373.0,0.22226009]
[1729606973182,0.296806,67384.0,67380.0,0.0046063]
[1729606973405,0.25709758,67381.0,67380.0,0.0046063]
[1729606973708,0.40550758,67381.0,67380.0,0.0046063]
[1729606974520,0.40550758,67381.0,67380.0,0.0076063]
[1729606974521,0.25709758,67381.0,67380.0,0.0076063]
[1729606974749,0.25709758,67381.0,67380.0,0.0046063]
[1729606974983,0.41250658,67381.0,67380.0,0.0046063]
[1729606975216,0.41850658,67381.0,67380.0,0.0056063]
[1729606975448,0.41933258,67381.0,67380.0,0.0056063]
[1729606975688,0.41233258,67381.0,67380.0,0.001]
[1729606975924,0.41733258,67381.0,67380.0,0.001]
[1729606976410,0.41733258,67381.0,67378.0,0.0046063]
[1729606976411,0.26292358,67381.0,67378.0,0.0046063]
[1729606976650,0.26292358,67381.0,67380.0,0.22226009]
[1729606976905,0.005826,67381.0,67380.0,0.0066063]
[1729606977135,0.005826,67381.0,67380.0,0.0046063]
[1729606977367,0.005826,67381.0,67380.0,0.1530173]
[1729606977368,0.000826,67381.0,67380.0,0.1530173]
[1729606977605,0.006826,67381.0,67380.0,0.1540173]
[1729606977831,0.007826,67381.0,67380.0,0.1530173]
[1729606978048,0.011826,67381.0,67380.0,0.1530173]
[1729606978296,0.011826,67381.0,67380.0,0.23095092]
[1729606978297,0.004826,67381.0,67380.0,0.23095092]
[1729606978509,0.005826,67381.0,67380.0,0.47914181]
[1729606978733,0.005826,67381.0,67380.0,0.47617393]
[1729606979008,0.000826,67381.0,67380.0,0.47617393]
[1729606979225,0.000826,67381.0,67380.0,0.1530173]
[1729606979723,0.000826,67381.0,67380.0,0.15598509]
[1729606979936,0.000826,67381.0,67380.0,0.1560173]
[1729606980197,0.000826,67381.0,67380.0,0.15898501]
[1729606980415,0.000826,67381.0,67380.0,0.15598501]
[1729606980623,0.000826,67381.0,67380.0,0.15698501]
[1729606981127,0.000826,67381.0,67380.0,0.1560173]
[1729606981588,0.000826,67381.0,67380.0,0.1540173]
[1729606981829,0.000826,67381.0,67380.0,0.1570173]
[1729606982105,0.000826,67381.0,67380.0,0.0076063]
[1729606982346,0.000826,67381.0,67380.0,0.0086063]
[1729606983091,0.40626464,67381.0,67380.0,0.001]
[1729606983300,0.01462924,67381.0,67380.0,0.0056063]
[1729606983525,0.16304872,67381.0,67380.0,0.0086063]
[1729606983738,0.42007836,67381.0,67380.0,0.0046063]
[1729606984006,0.27166936,67381.0,67380.0,0.0056063]
[1729606984221,0.27166936,67381.0,67380.0,0.0086063]
[1729606984449,0.27166936,67381.0,67380.0,0.0076063]
[1729606984898,0.27166936,67381.0,67380.0,0.0056063]
[1729606985117,0.27166936,67381.0,67380.0,0.0086063]
[1729606985597,0.27166936,67381.0,67380.0,0.0076063]
[1729606985598,0.28550888,67381.0,67380.0,0.0076063]
[1729606986057,0.27166936,67381.0,67380.0,0.0076063]
[1729606986276,0.28550997,67381.0,67380.0,0.0076063]
[1729606986503,0.28550997,67381.0,67380.0,0.0046063]
[1729606986923,0.27366936,67381.0,67380.0,0.0046063]
[1729606987150,0.27366936,67381.0,67374.0,0.0046063]
[1729606987151,0.27166936,67381.0,67374.0,0.0046063]
[1729606987422,0.40544964,67376.0,67375.0,0.22226009]
[1729606987670,0.40544964,67376.0,67367.0,0.14844]
[1729606987671,0.29685,67374.0,67367.0,0.0046063]
[1729606987944,0.40545464,67374.0,67373.0,0.22226009]
[1729606988195,0.148419,67377.0,67375.0,0.0046063]
[1729606988437,0.148428,67373.0,67370.0,0.0046063]
[1729606988670,0.01384581,67372.0,67370.0,0.0046063]
[1729606988884,0.01384581,67371.0,67370.0,0.0046063]
[1729606989532,0.148429,67372.0,67370.0,0.0046063]
[1729606989752,0.25702964,67374.0,67370.0,0.0046063]
[1729606989753,0.01384782,67371.0,67370.0,0.0046063]
[1729606990645,0.01884782,67371.0,67370.0,0.0046063]
[1729606990882,0.01384782,67371.0,67370.0,0.0046063]
[1729606991308,0.01584782,67371.0,67370.0,0.0046063]
[1729606992248,0.16880697,67371.0,67360.0,0.0046063]
[1729606992498,0.16880697,67371.0,67353.0,0.001652]
[1729606992499,0.01384782,67370.0,67366.0,0.22686639]
[1729606992716,0.006,67371.0,67359.0,0.22226009]
[1729606992717,0.006,67371.0,67369.0,0.0046063]
[1729606992933,0.01385199,67370.0,67369.0,0.0046063]
[1729606993625,0.01385199,67370.0,67359.0,0.51917209]
[1729606993626,0.148453,67361.0,67360.0,0.22526009]
[1729606993865,0.148453,67361.0,67360.0,0.22226009]
[1729606994096,0.16230849,67361.0,67360.0,0.22226009]
[1729606994346,0.16230849,67361.0,67359.0,0.0046063]
[1729606994557,0.16231149,67360.0,67359.0,0.0046063]
[1729606995014,0.01385549,67360.0,67356.0,0.0046063]
[1729606995251,0.004,67361.0,67356.0,0.0046063]
[1729606995252,0.01385549,67359.0,67356.0,0.0046063]
[1729606995481,0.01385549,67358.0,67356.0,0.0046063]
[1729606995705,0.01385549,67357.0,67356.0,0.0046063]
[1729606996575,0.01385549,67357.0,67356.0,0.1530703]
[1729606997476,0.01785549,67357.0,67356.0,0.15603927]
[1729606997721,0.01785549,67357.0,67356.0,0.1530703]
[1729606997965,0.01385549,67357.0,67356.0,0.1530703]
[1729606998203,0.01385549,67357.0,67356.0,0.38799819]
[1729606998456,0.148424,67375.0,67368.0,0.148437]
[1729606998673,0.01387058,67374.0,67367.0,0.148438]
[1729606998905,0.01387058,67373.0,67370.0,0.0046063]
[1729606999132,0.01387058,67372.0,67370.0,0.0046063]
[1729606999422,0.01387058,67371.0,67370.0,0.0046063]
[1729606999644,0.01387058,67371.0,67364.0,0.0046063]
[1729606999862,0.25702964,67366.0,67362.0,0.0046063]
[1729607000089,0.40546264,67371.0,67365.0,0.22686639]
[1729607000367,0.25702964,67366.0,67363.0,0.0046063]
[1729607000588,0.16231606,67365.0,67363.0,0.0046063]
[1729607000802,0.148449,67363.0,67362.0,0.0046063]
[1729607001052,0.40547164,67366.0,67363.0,0.0046063]
[1729607001294,0.01387066,67365.0,67363.0,0.0046063]
[1729607001505,0.01387066,67364.0,67363.0,0.0046063]
[1729607002488,0.01387066,67364.0,67355.0,0.296931]
[1729607002489,0.16282981,67364.0,67355.0,0.0046063]
[1729607002734,0.16938178,67361.0,67356.0,0.22226009]
[1729607002990,0.148462,67358.0,67355.0,0.0046063]
[1729607003231,0.01387066,67357.0,67355.0,0.0046063]
[1729607003458,0.01387066,67356.0,67355.0,0.0046063]
[1729607003694,0.01387066,67356.0,67355.0,0.23547974]
[1729607003917,0.01387066,67356.0,67355.0,0.1530733]
[1729607004192,0.01387066,67356.0,67355.0,0.47938326]
[1729607004427,0.01386794,67370.0,67369.0,0.0046063]
[1729607004687,0.01386822,67370.0,67369.0,0.0046063]
[1729607005324,0.01386822,67370.0,67365.0,0.296886]
[1729607005325,0.01386822,67370.0,67366.0,0.14844]
[1729607005550,0.01386822,67369.0,67366.0,0.14844]
[1729607005769,0.01386822,67368.0,67366.0,0.14844]
[1729607005987,0.0138679,67374.0,67373.0,0.148427]
[1729607006207,0.0138679,67374.0,67368.0,0.296876]
[1729607006208,0.01386661,67374.0,67368.0,0.296876]
[1729607006417,0.01386661,67373.0,67371.0,0.148431]
[1729607006644,0.01386661,67372.0,67371.0,0.148431]
[1729607007969,0.01586661,67372.0,67371.0,0.148431]
[1729607008215,0.003,67372.0,67365.0,0.51914609]
[1729607008453,0.003,67372.0,67371.0,0.148431]
[1729607008664,0.01687135,67372.0,67371.0,0.148431]
[1729607009099,0.01687135,67372.0,67364.0,0.148445]
[1729607009100,0.18625313,67372.0,67364.0,0.148445]
[1729607009329,0.16938178,67368.0,67352.0,0.089552]
[1729607009567,0.31783578,67361.0,67354.0,0.148468]
[1729607009863,0.02775146,67360.0,67352.0,0.001652]
[1729607010078,0.16938178,67357.0,67352.0,0.001652]
[1729607010298,0.01387135,67356.0,67352.0,0.001652]
[1729607010509,0.01387135,67355.0,67352.0,0.001652]
[1729607010737,0.01387135,67354.0,67352.0,0.001652]
[1729607011202,0.22659247,67354.0,67352.0,0.001652]
[1729607011418,0.09200519,67354.0,67352.0,0.001652]
[1729607011645,0.24047419,67354.0,67352.0,0.001652]
[1729607011888,0.33456652,67354.0,67352.0,0.001652]
[1729607012105,0.37890311,67354.0,67352.0,0.001652]
[1729607012369,0.48352567,67354.0,67352.0,0.001652]
[1729607012580,0.55007147,67354.0,67352.0,0.001652]
[1729607012819,0.73598938,67354.0,67352.0,0.001652]
[1729607013034,0.6493162,67354.0,67352.0,0.001652]
[1729607013269,0.6473162,67354.0,67352.0,0.001652]
[1729607013785,0.92336562,67354.0,67353.0,0.002652]
[1729607014018,0.91736562,67354.0,67353.0,0.002652]
[1729607014233,0.82869195,67354.0,67353.0,0.002652]
[1729607014446,0.67919298,67354.0,67353.0,0.002652]
[1729607014898,0.67919776,67354.0,67353.0,0.002652]
[1729607015348,0.59877334,67354.0,67353.0,0.002652]
[1729607015584,0.58489169,67354.0,67353.0,0.002652]
[1729607015804,0.65698692,67354.0,67353.0,0.002652]
[1729607016023,0.61263758,67354.0,67353.0,0.002652]
[1729607016727,0.65697838,67354.0,67353.0,0.002652]
[1729607017200,0.90421719,67354.0,67353.0,0.002652]
[1729607017411,5.46890302,67354.0,67353.0,0.002652]
[1729607017642,5.46890302,67354.0,67352.0,0.00041808]
[1729607017643,0.265471,67353.0,67352.0,0.00041808]
[1729607017860,0.44217604,67353.0,67352.0,0.00041808]
[1729607019422,0.45317604,67353.0,67352.0,0.00141808]
[1729607019862,0.46417604,67353.0,67352.0,0.00141808]
[1729607020073,0.45317604,67353.0,67352.0,0.00041808]
[1729607020276,0.44217604,67353.0,67352.0,0.00041808]
[1729607020490,0.45317604,67353.0,67352.0,0.00141808]
[1729607020699,0.45617604,67353.0,67352.0,0.00041808]
[1729607021870,0.50239863,67353.0,67352.0,0.00041808]
[1729607022767,0.51639863,67353.0,67352.0,0.00141808]
[1729607024040,0.50252733,67353.0,67352.0,0.00141808]
[1729607024461,0.45630474,67353.0,67352.0,0.00141808]
[1729607024682,0.61981514,67353.0,67352.0,0.00141808]
[1729607024919,0.63365563,67353.0,67352.0,0.00141808]
[1729607025990,0.61981514,67353.0,67352.0,0.00141808]
[1729607027094,0.64281514,67353.0,67352.0,0.00141808]
[1729607027557,0.1485,67340.0,67339.0,0.22226009]
[1729607027766,0.46684093,67340.0,67339.0,0.22226009]
[1729607028182,0.148507,67337.0,67325.0,0.001652]
[1729607028408,0.148515,67334.0,67325.0,0.001652]
[1729607028653,0.46640578,67335.0,67320.0,0.06181719]
[1729607028654,0.148524,67329.0,67320.0,0.06181719]
[1729607028908,0.002,67335.0,67318.0,0.1680248]
[1729607028909,0.148528,67327.0,67326.0,0.22226009]
[1729607029128,0.297062,67326.0,67318.0,0.0194778]
[1729607029356,0.148546,67319.0,67318.0,0.0194778]
[1729607029798,0.46688693,67319.0,67318.0,0.0194778]
[1729607030020,0.29750515,67319.0,67318.0,0.0194778]
[1729607030231,0.30250515,67319.0,67318.0,0.0194778]
[1729607030442,0.005,67317.0,67311.0,0.00168]
[1729607030672,0.148561,67312.0,67311.0,0.00168]
[1729607032309,0.29752015,67312.0,67311.0,0.00168]
[1729607032992,0.15795915,67312.0,67311.0,0.00168]
[1729607033218,0.30652015,67312.0,67311.0,0.00168]
[1729607034148,0.019,67312.0,67311.0,0.150244]
[1729607034377,0.019,67312.0,67311.0,0.00168]
[1729607034829,0.019,67312.0,67311.0,0.150244]
[1729607035050,0.019,67312.0,67311.0,0.00168]
[1729607035248,0.009,67312.0,67311.0,0.00168]
[1729607035508,0.009,67312.0,67311.0,0.150244]
[1729607035741,0.16938178,67316.0,67311.0,0.00168]
[1729607035956,0.25771583,67340.0,67311.0,0.00168]
[1729607035957,0.18721996,67312.0,67311.0,0.00168]
[1729607036175,0.31894278,67312.0,67311.0,0.00168]
[1729607036450,0.31794278,67312.0,67311.0,0.00168]
[1729607036669,0.16938178,67312.0,67311.0,0.00268]
[1729607036894,0.16938178,67312.0,67311.0,0.00168]
[1729607037341,0.44606915,67315.0,67311.0,0.00168]
[1729607037342,0.16938178,67316.0,67311.0,0.00268]
[1729607037575,0.148548,67318.0,67311.0,0.00268]
[1729607037812,0.297082,67322.0,67311.0,0.299808]
[1729607038022,0.297082,67322.0,67311.0,0.00168]
[1729607038023,0.16938178,67316.0,67311.0,0.00168]
[1729607038465,0.006,67312.0,67311.0,0.00168]
[1729607038885,0.005,67312.0,67311.0,0.00168]
[1729607039121,0.16938178,67316.0,67311.0,0.00168]
[1729607039351,0.148555,67315.0,67311.0,0.00168]
[1729607039604,0.31794278,67312.0,67311.0,0.00168]
[1729607039831,0.14856,67313.0,67311.0,0.00168]
[1729607040053,0.002,67312.0,67311.0,0.00168]
[1729607040298,0.0575718,67316.0,67311.0,0.00168]
[1729607040530,0.0312082,67315.0,67311.0,0.00168]
[1729607040751,0.0332082,67315.0,67311.0,0.00168]
[1729607041228,0.002,67315.0,67311.0,0.00168]
[1729607041464,0.004,67313.0,67312.0,0.148561]
[1729607041677,0.004,67313.0,67312.0,0.37082109]
[1729607041890,0.004,67313.0,67312.0,0.148561]
[1729607042115,0.004,67313.0,67311.0,0.298807]
[1729607042116,0.004,67313.0,67311.0,0.00168]
[1729607042339,0.31792578,67321.0,67312.0,0.148561]
[1729607042558,0.297072,67324.0,67315.0,0.148554]
[1729607042771,0.297072,67324.0,67311.0,0.00168]
[1729607042772,0.302072,67324.0,67312.0,0.148561]
[1729607043053,0.302072,67324.0,67313.0,0.22226009]
[1729607043292,0.16938178,67317.0,67311.0,0.00168]
[1729607043525,0.16938178,67317.0,67313.0,0.22226009]
[1729607043959,0.001,67315.0,67311.0,0.00168]
[1729607044170,0.16938178,67313.0,67311.0,0.00168]
[1729607044398,0.14895915,67313.0,67311.0,0.00168]
[1729607044621,0.148561,67312.0,67311.0,0.00168]
[1729607044848,0.148561,67312.0,67311.0,0.00268]
[1729607045298,0.148561,67312.0,67311.0,0.00168]
[1729607046409,0.001,67313.0,67311.0,0.00168]
[1729607046914,0.002,67312.0,67311.0,0.00168]
[1729607047127,0.148555,67315.0,67311.0,0.00168]
[1729607047322,0.29751415,67315.0,67311.0,0.00168]
[1729607047585,0.003,67312.0,67311.0,0.00168]
[1729607048031,0.148561,67312.0,67311.0,0.00168]
[1729607048318,0.30252015,67312.0,67311.0,0.00168]
[1729607048557,0.59576417,67312.0,67311.0,0.00168]
[1729607048794,0.59776417,67312.0,67311.0,0.00268]
[1729607049015,0.59776417,67312.0,67311.0,0.00168]
[1729607049254,0.61162946,67312.0,67311.0,0.00168]
[1729607049505,0.61362946,67312.0,67311.0,0.00168]
[1729607049737,0.63462946,67312.0,67311.0,0.00168]
[1729607049966,0.64862946,67312.0,67311.0,0.00168]
[1729607050205,0.64862764,67312.0,67311.0,0.00168]
[1729607050443,0.265566,67310.0,67309.0,0.00084]
[1729607050732,0.76094355,67310.0,67309.0,0.00084]
[1729607050965,0.62733356,67308.0,67307.0,9e-05]
[1729607051190,0.165575,67306.0,67305.0,0.00168]
[1729607051419,0.51717878,67296.0,67295.0,0.18183092]
[1729607051715,0.85566364,67296.0,67295.0,0.18183092]
[1729607051933,0.85566364,67296.0,67281.0,0.00084]
[1729607051934,0.288619,67286.0,67285.0,0.06469784]
[1729607052178,0.288619,67286.0,67266.0,0.070058]
[1729607052179,0.163661,67267.0,67266.0,0.070058]
[1729607052416,5.23162246,67267.0,67266.0,0.02903318]
[1729607052650,0.288676,67260.0,67259.0,5.243e-05]
[1729607052892,0.288676,67260.0,67259.0,0.22231252]
[1729607052893,0.62743956,67260.0,67259.0,0.22231252]
[1729607053100,0.77639871,67260.0,67259.0,5.243e-05]
[1729607053339,5.35198871,67260.0,67259.0,5.243e-05]
[1729607053557,5.51020143,67260.0,67259.0,5.243e-05]
[1729607053777,5.46856081,67260.0,67259.0,5.243e-05]
[1729607054312,5.46856081,67260.0,67223.0,0.0781]
[1729607054313,0.165696,67251.0,67244.0,0.22226009]
[1729607054586,0.454796,67251.0,67244.0,0.22226009]
[1729607054827,0.429796,67251.0,67244.0,0.22226009]
[1729607055085,0.4834039,67251.0,67244.0,0.22226009]
[1729607055305,0.44359771,67251.0,67245.0,0.22226009]
[1729607055568,0.16249771,67251.0,67245.0,0.22226009]
[1729607055839,0.16249771,67251.0,67239.0,0.000841]
[1729607055840,0.34045686,67251.0,67239.0,0.000841]
[1729607056044,0.32645686,67251.0,67239.0,0.000841]
[1729607056281,0.32645686,67251.0,67250.0,0.0186528]
[1729607056493,0.38006476,67251.0,67250.0,0.0186528]
[1729607056753,0.32645686,67251.0,67250.0,0.0186528]
[1729607056986,0.35145686,67251.0,67250.0,0.0186528]
[1729607057212,0.37445686,67251.0,67250.0,0.0186528]
[1729607057433,0.46345686,67251.0,67250.0,0.0186528]
[1729607057899,0.47645686,67251.0,67250.0,0.0186528]
[1729607058423,0.46445686,67251.0,67250.0,0.0186528]
[1729607058862,0.46545686,67251.0,67250.0,0.0186528]
[1729607059080,0.155712,67244.0,67239.0,0.000841]
[1729607059300,1.9247498,67244.0,67239.0,0.000841]
[1729607059516,1.4687498,67244.0,67239.0,0.000841]
[1729607059727,0.9847498,67244.0,67239.0,0.000841]
[1729607059944,0.9827498,67244.0,67239.0,0.000841]
[1729607060160,0.8487498,67244.0,67239.0,0.000841]
[1729607060375,0.8507498,67244.0,67239.0,0.000841]
[1729607060632,0.85069099,67244.0,67239.0,0.000841]
[1729607061046,0.70969099,67244.0,67239.0,0.000841]
[1729607061480,0.70769099,67244.0,67239.0,0.000841]
[1729607061699,0.72169099,67244.0,67239.0,0.000841]
[1729607062253,0.73469099,67244.0,67239.0,0.000841]
[1729607062600,0.71169099,67244.0,67239.0,0.000841]
[1729607063787,0.71169099,67244.0,67216.0,9e-05]
[1729607063788,0.176771,67217.0,67216.0,9e-05]
[1729607064001,0.43504794,67217.0,67216.0,9e-05]
[1729607064221,0.43504794,67217.0,67210.0,0.22226009]
[1729607064222,0.148785,67211.0,67210.0,0.22226009]
[1729607064494,0.16251213,67211.0,67210.0,0.22226009]
[1729607064716,0.01372713,67211.0,67203.0,0.22226009]
[1729607064894,0.297549,67216.0,67203.0,0.22226009]
[1729607064895,0.01372713,67212.0,67203.0,0.22226009]
[1729607065154,0.01372713,67215.0,67203.0,0.22226009]
[1729607065420,0.397511,67225.0,67203.0,0.22226009]
[1729607065421,0.014,67217.0,67205.0,0.148798]
[1729607065632,0.014,67217.0,67203.0,0.15395915]
[1729607065876,0.22226009,67218.0,67211.0,0.148783]
[1729607066412,0.22226009,67218.0,67200.0,0.005]
[1729607066660,0.37103009,67218.0,67210.0,0.148786]
[1729607066878,0.37102909,67218.0,67209.0,0.148787]
[1729607067359,0.14895915,67224.0,67206.0,0.22226009]
[1729607067635,0.14895915,67224.0,67190.0,0.002]
[1729607067636,0.005,67175.0,67163.0,5.248e-05]
[1729607067855,0.2384,67198.0,67142.0,0.89267781]
[1729607067856,0.01,67151.0,67143.0,0.297868]
[1729607068119,0.01,67182.0,67145.0,0.297859]
[1729607068120,0.005,67155.0,67145.0,0.297859]
[1729607068377,0.297751,67171.0,67145.0,0.297859]
[1729607068378,0.005,67162.0,67146.0,0.00297808]
[1729607068594,0.005,67165.0,67151.0,0.00297808]